[Event "*** Titled Tuesday Blitz"]
[Site "Chess.com"]
[Date "2020.05.26"]
[Round "3"]
[White "A-Fier"]
[Black "tsvet2005"]
[Result "0-1"]
[WhiteElo "2744"]
[BlackElo "2532"]
[TimeControl "180+1"]
[EndTime "10:28:06 PDT"]
[Termination "tsvet2005 won by checkmate"]

1. e4 {[%clk 0:03:00.9]} 1... c5 {[%clk 0:02:59.3]} 2. Nf3 {[%clk 0:03:00.3]}
2... d6 {[%clk 0:03:00]} 3. d4 {[%clk 0:03:01]} 3... cxd4 {[%clk 0:03:00.9]} 4.
Nxd4 {[%clk 0:03:01.8]} 4... Nf6 {[%clk 0:02:59.6]} 5. Nc3 {[%clk 0:03:02.2]}
5... a6 {[%clk 0:03:00]} 6. Bg5 {[%clk 0:03:01.9]} 6... Nbd7 {[%clk 0:02:59.2]}
7. f4 {[%clk 0:03:01.2]} 7... Qc7 {[%clk 0:02:57.1]} 8. Qf3 {[%clk 0:03:00.4]}
8... b5 {[%clk 0:02:57.5]} 9. O-O-O {[%clk 0:02:58.4]} 9... Bb7 {[%clk 0:02:57]}
10. g4 {[%clk 0:02:58.4]} 10... g6 {[%clk 0:02:49.5]} 11. Bxf6 {[%clk
0:02:57.4]} 11... Nxf6 {[%clk 0:02:49.9]} 12. g5 {[%clk 0:02:57.9]} 12... Nd7
{[%clk 0:02:47.4]} 13. h4 {[%clk 0:02:53.9]} 13... Bg7 {[%clk 0:02:43.6]} 14.
Bh3 {[%clk 0:02:54]} 14... Nb6 {[%clk 0:02:34.9]} 15. h5 {[%clk 0:02:51]} 15...
Qc4 {[%clk 0:02:26.5]} 16. Bf1 {[%clk 0:02:38.9]} 16... Qc5 {[%clk 0:02:08]} 17.
Nb3 {[%clk 0:02:38.6]} 17... Qc7 {[%clk 0:02:07.5]} 18. Nd5 {[%clk 0:02:33.7]}
18... Bxd5 {[%clk 0:02:00.3]} 19. exd5 {[%clk 0:02:34.6]} 19... Na4 {[%clk
0:01:58.4]} 20. Nd4 {[%clk 0:02:22.6]} 20... Qc5 {[%clk 0:01:48.5]} 21. Qd3
{[%clk 0:02:11.9]} 21... Rc8 {[%clk 0:01:45.4]} 22. Rh2 {[%clk 0:02:11.6]} 22...
Qxd5 {[%clk 0:01:34.9]} 23. h6 {[%clk 0:01:55.8]} 23... Bxd4 {[%clk 0:01:24.3]}
24. Qxd4 {[%clk 0:01:56.7]} 24... Qxd4 {[%clk 0:01:24.7]} 25. Rxd4 {[%clk
0:01:56.2]} 25... O-O {[%clk 0:01:18.8]} 26. Re2 {[%clk 0:01:56.2]} 26... Rfe8
{[%clk 0:01:15.3]} 27. Bh3 {[%clk 0:01:54.9]} 27... Rcd8 {[%clk 0:01:11.2]} 28.
b3 {[%clk 0:01:37.7]} 28... Nc5 {[%clk 0:00:32.8]} 29. Kb2 {[%clk 0:01:34.7]}
29... Kf8 {[%clk 0:00:32.2]} 30. Bg2 {[%clk 0:01:33.2]} 30... Rc8 {[%clk
0:00:30.8]} 31. Bh3 {[%clk 0:01:21.2]} 31... Rc7 {[%clk 0:00:30.8]} 32. c4
{[%clk 0:01:17.5]} 32... bxc4 {[%clk 0:00:29.8]} 33. Rxc4 {[%clk 0:01:17.9]}
33... e6 {[%clk 0:00:25.6]} 34. Rd4 {[%clk 0:01:12.7]} 34... Ke7 {[%clk
0:00:23.9]} 35. b4 {[%clk 0:01:12.2]} 35... Na4+ {[%clk 0:00:22.5]} 36. Kb3
{[%clk 0:01:12]} 36... Nc3 {[%clk 0:00:15.9]} 37. Re3 {[%clk 0:01:10.3]} 37...
Nb5 {[%clk 0:00:15.3]} 38. Rd2 {[%clk 0:01:10.9]} 38... Rec8 {[%clk 0:00:13.8]}
39. Rdd3 {[%clk 0:01:09]} 39... d5 {[%clk 0:00:13.5]} 40. a4 {[%clk 0:01:08.8]}
40... Nd6 {[%clk 0:00:12.6]} 41. Rxd5 {[%clk 0:01:09.2]} 41... Rc1 {[%clk
0:00:07.4]} 42. Rdd3 {[%clk 0:01:00.7]} 42... Rb1+ {[%clk 0:00:07.6]} 43. Ka2
{[%clk 0:00:57.9]} 43... Rxb4 {[%clk 0:00:07.5]} 44. Rb3 {[%clk 0:00:55.7]}
44... Rxa4+ {[%clk 0:00:07]} 45. Kb1 {[%clk 0:00:56.3]} 45... Rc7 {[%clk
0:00:06.1]} 46. f5 {[%clk 0:00:55.2]} 46... gxf5 {[%clk 0:00:05.6]} 47. Rb8
{[%clk 0:00:54.8]} 47... Nc4 {[%clk 0:00:05.5]} 48. Re2 {[%clk 0:00:54]} 48...
Na3+ {[%clk 0:00:05.5]} 49. Kb2 {[%clk 0:00:53.6]} 49... Nc4+ {[%clk 0:00:05.7]}
50. Kb3 {[%clk 0:00:53.9]} 50... Ra3+ {[%clk 0:00:06.1]} 51. Kb4 {[%clk
0:00:54.3]} 51... a5+ {[%clk 0:00:06.2]} 52. Kb5 {[%clk 0:00:54.2]} 52... Rb3+
{[%clk 0:00:05.8]} 53. Ka6 {[%clk 0:00:52.1]} 53... Rxb8 {[%clk 0:00:06.7]} 54.
Bxf5 {[%clk 0:00:52.4]} 54... Rb6# {[%clk 0:00:06.8]} 0-1

[Event "*** Titled Tuesday Blitz"]
[Site "Chess.com"]
[Date "2020.05.26"]
[Round "3"]
[White "AEMEffi"]
[Black "Ariadna_Atreides"]
[Result "1-0"]
[WhiteElo "2301"]
[BlackElo "2062"]
[TimeControl "180+1"]
[EndTime "10:28:06 PDT"]
[Termination "AEMEffi won by resignation"]

1. d4 {[%clk 0:03:00.9]} 1... e6 {[%clk 0:02:59.6]} 2. c4 {[%clk 0:03:01.2]}
2... Bb4+ {[%clk 0:02:59.2]} 3. Bd2 {[%clk 0:03:00.9]} 3... Qe7 {[%clk
0:02:59.4]} 4. Nf3 {[%clk 0:03:00.4]} 4... Nf6 {[%clk 0:02:57.6]} 5. a3 {[%clk
0:02:59.1]} 5... Bxd2+ {[%clk 0:02:56.6]} 6. Nbxd2 {[%clk 0:03:00]} 6... c5
{[%clk 0:02:53.2]} 7. e3 {[%clk 0:02:57.1]} 7... Nc6 {[%clk 0:02:52.3]} 8. dxc5
{[%clk 0:02:54.8]} 8... Qxc5 {[%clk 0:02:51]} 9. b4 {[%clk 0:02:54.7]} 9... Qf5
{[%clk 0:02:37]} 10. Qb1 {[%clk 0:02:52.1]} 10... Qxb1+ {[%clk 0:02:31.2]} 11.
Rxb1 {[%clk 0:02:53]} 11... a6 {[%clk 0:02:22.3]} 12. c5 {[%clk 0:02:50]} 12...
Ke7 {[%clk 0:02:13.1]} 13. Nc4 {[%clk 0:02:49.1]} 13... Ne4 {[%clk 0:02:04]} 14.
Bd3 {[%clk 0:02:37.3]} 14... d5 {[%clk 0:01:59.2]} 15. Nb6 {[%clk 0:02:31.3]}
15... Rb8 {[%clk 0:01:58]} 16. Bxe4 {[%clk 0:02:31.6]} 16... dxe4 {[%clk
0:01:57.5]} 17. Nd2 {[%clk 0:02:31]} 17... f5 {[%clk 0:01:55.2]} 18. Ndc4 {[%clk
0:02:28.4]} 18... e5 {[%clk 0:01:54]} 19. Nd6 {[%clk 0:02:26.1]} 19... Be6
{[%clk 0:01:51.8]} 20. O-O {[%clk 0:02:24.6]} 20... Na7 {[%clk 0:01:28.7]} 21.
Rfd1 {[%clk 0:01:57.3]} 21... Nb5 {[%clk 0:01:21.7]} 22. Nxb5 {[%clk 0:01:55]}
22... axb5 {[%clk 0:01:21.6]} 23. Rd6 {[%clk 0:01:43.2]} 23... Rbd8 {[%clk
0:01:13.5]} 24. Rbd1 {[%clk 0:01:42.1]} 24... Bb3 {[%clk 0:01:03]} 25. R1d2
{[%clk 0:01:32]} 25... Rxd6 {[%clk 0:00:43.7]} 26. Rxd6 {[%clk 0:01:28.6]} 26...
Be6 {[%clk 0:00:36.3]} 27. Kf1 {[%clk 0:01:22]} 27... Rd8 {[%clk 0:00:31.6]} 28.
Rxd8 {[%clk 0:01:18.9]} 28... Kxd8 {[%clk 0:00:31.4]} 29. f3 {[%clk 0:01:10.5]}
29... exf3 {[%clk 0:00:29.9]} 30. gxf3 {[%clk 0:01:11.4]} 30... e4 {[%clk
0:00:23.6]} 31. fxe4 {[%clk 0:01:04.3]} 31... fxe4 {[%clk 0:00:23.4]} 32. h4
{[%clk 0:01:05.2]} 32... g6 {[%clk 0:00:20.8]} 33. Kf2 {[%clk 0:01:03]} 33... h6
{[%clk 0:00:19.6]} 34. Kg3 {[%clk 0:00:59.2]} 34... g5 {[%clk 0:00:19.4]} 35. a4
{[%clk 0:00:53.5]} 35... Bd7 {[%clk 0:00:16.7]} 36. axb5 {[%clk 0:00:36.4]}
36... Bxb5 {[%clk 0:00:16.3]} 37. hxg5 {[%clk 0:00:36.9]} 37... hxg5 {[%clk
0:00:15.9]} 38. Kg4 {[%clk 0:00:37.8]} 38... Ke7 {[%clk 0:00:15.1]} 39. Kxg5
{[%clk 0:00:38.2]} 39... Ke6 {[%clk 0:00:15.2]} 40. Kf4 {[%clk 0:00:37.8]} 40...
Bd3 {[%clk 0:00:15]} 41. Nc8 {[%clk 0:00:32.2]} 41... Kd5 {[%clk 0:00:14.2]} 42.
Nd6 {[%clk 0:00:32.1]} 42... Bc2 {[%clk 0:00:08.5]} 43. Nxb7 {[%clk 0:00:28.4]}
43... Kc4 {[%clk 0:00:07.7]} 44. c6 {[%clk 0:00:27.5]} 44... Ba4 {[%clk
0:00:07.2]} 45. c7 {[%clk 0:00:27.2]} 45... Bd7 {[%clk 0:00:07.2]} 46. c8=Q+
{[%clk 0:00:25.6]} 46... Bxc8 {[%clk 0:00:05.5]} 47. Nd6+ {[%clk 0:00:26.1]}
47... Kxb4 {[%clk 0:00:05.6]} 48. Nxc8 {[%clk 0:00:27]} 48... Kc5 {[%clk
0:00:05.8]} 49. Kxe4 {[%clk 0:00:27.1]} 1-0

[Event "*** Titled Tuesday Blitz"]
[Site "Chess.com"]
[Date "2020.05.26"]
[Round "3"]
[White "louis198"]
[Black "Zurability"]
[Result "1-0"]
[WhiteElo "2509"]
[BlackElo "2712"]
[TimeControl "180+1"]
[EndTime "10:28:09 PDT"]
[Termination "louis198 won by resignation"]

1. d4 {[%clk 0:03:00.2]} 1... Nf6 {[%clk 0:02:59.6]} 2. Bf4 {[%clk 0:03:00.3]}
2... g6 {[%clk 0:02:53.7]} 3. e3 {[%clk 0:03:00.3]} 3... Bg7 {[%clk 0:02:53.6]}
4. h3 {[%clk 0:02:57.8]} 4... O-O {[%clk 0:02:50.5]} 5. Nf3 {[%clk 0:02:58.1]}
5... d6 {[%clk 0:02:50.4]} 6. Bc4 {[%clk 0:02:57.9]} 6... Nfd7 {[%clk
0:02:47.9]} 7. O-O {[%clk 0:02:57.6]} 7... e5 {[%clk 0:02:47.7]} 8. Bh2 {[%clk
0:02:57.5]} 8... Nc6 {[%clk 0:02:47.1]} 9. a4 {[%clk 0:02:54.9]} 9... h6 {[%clk
0:02:45.5]} 10. c3 {[%clk 0:02:54.9]} 10... Kh7 {[%clk 0:02:40.2]} 11. b4 {[%clk
0:02:53.4]} 11... e4 {[%clk 0:02:12.9]} 12. Nfd2 {[%clk 0:02:52.5]} 12... f5
{[%clk 0:02:13.4]} 13. Nb3 {[%clk 0:02:51.5]} 13... Ne7 {[%clk 0:02:12.2]} 14.
b5 {[%clk 0:02:45.3]} 14... g5 {[%clk 0:02:02.6]} 15. N1d2 {[%clk 0:02:43.8]}
15... Nf6 {[%clk 0:01:59.3]} 16. a5 {[%clk 0:02:41.2]} 16... Ng6 {[%clk
0:01:56.6]} 17. f3 {[%clk 0:02:02.1]} 17... d5 {[%clk 0:01:49]} 18. Be2 {[%clk
0:02:00.9]} 18... f4 {[%clk 0:01:46.4]} 19. fxe4 {[%clk 0:01:55.5]} 19... Nxe4
{[%clk 0:01:23.9]} 20. Nxe4 {[%clk 0:01:53]} 20... dxe4 {[%clk 0:01:24.8]} 21.
Bh5 {[%clk 0:01:36.8]} 21... f3 {[%clk 0:01:19.1]} 22. Bxg6+ {[%clk 0:01:33.4]}
22... Kxg6 {[%clk 0:01:19.2]} 23. Qc2 {[%clk 0:01:28.5]} 23... fxg2 {[%clk
0:00:46.4]} 24. Qxe4+ {[%clk 0:01:26.9]} 24... Bf5 {[%clk 0:00:45.9]} 25. Qxg2
{[%clk 0:01:26.5]} 25... Qe7 {[%clk 0:00:43.9]} 26. Rae1 {[%clk 0:01:20]} 26...
Be4 {[%clk 0:00:42.9]} 27. Qg3 {[%clk 0:01:17]} 27... Bd5 {[%clk 0:00:37.7]} 28.
Nd2 {[%clk 0:01:10.6]} 28... Rxf1+ {[%clk 0:00:30.3]} 29. Rxf1 {[%clk 0:01:02]}
29... Rf8 {[%clk 0:00:22.3]} 30. Rxf8 {[%clk 0:00:57.7]} 30... Bxf8 {[%clk
0:00:20.6]} 31. Qe5 {[%clk 0:00:55.2]} 31... Qxe5 {[%clk 0:00:20.4]} 32. Bxe5
{[%clk 0:00:56.1]} 32... c6 {[%clk 0:00:21]} 33. e4 {[%clk 0:00:42.6]} 33... Be6
{[%clk 0:00:20.9]} 34. a6 {[%clk 0:00:40.1]} 34... bxa6 {[%clk 0:00:18.1]} 35.
bxc6 {[%clk 0:00:40.6]} 35... Bxh3 {[%clk 0:00:17]} 36. d5 {[%clk 0:00:40.8]}
36... Kf7 {[%clk 0:00:17.2]} 37. Bd4 {[%clk 0:00:29.6]} 37... a5 {[%clk
0:00:14.2]} 38. e5 {[%clk 0:00:27.5]} 38... a4 {[%clk 0:00:13.7]} 39. e6+ {[%clk
0:00:18.8]} 39... Bxe6 {[%clk 0:00:13.9]} 40. dxe6+ {[%clk 0:00:18.8]} 40...
Kxe6 {[%clk 0:00:14.8]} 41. Kf2 {[%clk 0:00:17.6]} 41... a3 {[%clk 0:00:13.9]}
42. c4 {[%clk 0:00:16.8]} 42... Kd6 {[%clk 0:00:12.6]} 43. Bc5+ {[%clk
0:00:15.2]} 43... Kxc5 {[%clk 0:00:08.3]} 44. c7 {[%clk 0:00:15.3]} 44... a2
{[%clk 0:00:07]} 45. c8=Q+ {[%clk 0:00:15.3]} 45... Kb4 {[%clk 0:00:07.5]} 46.
Qxf8+ {[%clk 0:00:14.7]} 46... Kc3 {[%clk 0:00:05.4]} 47. Qa3+ {[%clk
0:00:14.6]} 1-0

[Event "*** Titled Tuesday Blitz"]
[Site "Chess.com"]
[Date "2020.05.26"]
[Round "3"]
[White "awesomevishesh"]
[Black "chessdjw"]
[Result "0-1"]
[WhiteElo "2419"]
[BlackElo "2703"]
[TimeControl "180+1"]
[EndTime "10:28:09 PDT"]
[Termination "chessdjw won on time"]

1. d4 {[%clk 0:03:00.9]} 1... Nf6 {[%clk 0:02:59.1]} 2. c4 {[%clk 0:03:00.7]}
2... g6 {[%clk 0:02:59.1]} 3. Nc3 {[%clk 0:03:00]} 3... d5 {[%clk 0:02:59.7]} 4.
cxd5 {[%clk 0:02:59.3]} 4... Nxd5 {[%clk 0:03:00.6]} 5. e4 {[%clk 0:02:58.9]}
5... Nxc3 {[%clk 0:03:00.2]} 6. bxc3 {[%clk 0:02:59.8]} 6... Bg7 {[%clk
0:02:59.5]} 7. Bc4 {[%clk 0:02:59.5]} 7... c5 {[%clk 0:02:59.5]} 8. Ne2 {[%clk
0:02:58.7]} 8... Nc6 {[%clk 0:03:00.1]} 9. Be3 {[%clk 0:02:58.6]} 9... O-O
{[%clk 0:03:00.3]} 10. O-O {[%clk 0:02:58.3]} 10... Qc7 {[%clk 0:03:00.9]} 11.
Rc1 {[%clk 0:02:46.1]} 11... Bg4 {[%clk 0:02:56.4]} 12. f3 {[%clk 0:02:40.5]}
12... Bd7 {[%clk 0:02:55.4]} 13. Qd2 {[%clk 0:02:35.2]} 13... Rad8 {[%clk
0:02:51.7]} 14. h4 {[%clk 0:02:30.1]} 14... Na5 {[%clk 0:02:32.5]} 15. Bd3
{[%clk 0:02:28.4]} 15... e5 {[%clk 0:02:32.8]} 16. d5 {[%clk 0:02:14.7]} 16...
c4 {[%clk 0:02:28.1]} 17. Bc2 {[%clk 0:02:10.5]} 17... b6 {[%clk 0:02:20.1]} 18.
h5 {[%clk 0:01:40.3]} 18... Nb7 {[%clk 0:02:19.7]} 19. a4 {[%clk 0:01:23.5]}
19... Nd6 {[%clk 0:02:02]} 20. Ra1 {[%clk 0:01:19]} 20... Rde8 {[%clk
0:01:33.3]} 21. a5 {[%clk 0:01:13.4]} 21... b5 {[%clk 0:01:33.1]} 22. a6 {[%clk
0:00:56.5]} 22... f5 {[%clk 0:00:57.4]} 23. hxg6 {[%clk 0:00:53.2]} 23... hxg6
{[%clk 0:00:57.5]} 24. Nc1 {[%clk 0:00:43.3]} 24... f4 {[%clk 0:00:47.7]} 25.
Bf2 {[%clk 0:00:43.1]} 25... g5 {[%clk 0:00:48.3]} 26. Na2 {[%clk 0:00:27.8]}
26... g4 {[%clk 0:00:44.8]} 27. fxg4 {[%clk 0:00:26.8]} 27... Bxg4 {[%clk
0:00:44.9]} 28. Nb4 {[%clk 0:00:27.2]} 28... Rf6 {[%clk 0:00:40.6]} 29. Nc6
{[%clk 0:00:22.5]} 29... Qf7 {[%clk 0:00:40.5]} 30. Bxa7 {[%clk 0:00:18.6]}
30... Qh5 {[%clk 0:00:39.3]} 31. Bc5 {[%clk 0:00:07]} 31... Rh6 {[%clk
0:00:37.9]} 32. Bxd6 {[%clk 0:00:06.8]} 32... Qh2+ {[%clk 0:00:36.7]} 33. Kf2
{[%clk 0:00:06.8]} 33... Rxd6 {[%clk 0:00:15]} 34. a7 {[%clk 0:00:06.6]} 34...
Qg3+ {[%clk 0:00:13.8]} 35. Kg1 {[%clk 0:00:06.7]} 35... Rh6 {[%clk 0:00:10.3]}
36. a8=Q {[%clk 0:00:04.2]} 36... Qh2+ {[%clk 0:00:10.3]} 37. Kf2 {[%clk
0:00:04.2]} 37... Qg3+ {[%clk 0:00:10.2]} 38. Kg1 {[%clk 0:00:04.4]} 38... Rxa8
{[%clk 0:00:09]} 39. Rxa8+ {[%clk 0:00:03.3]} 39... Kh7 {[%clk 0:00:09.9]} 40.
d6 {[%clk 0:00:02.1]} 40... Bf6 {[%clk 0:00:09]} 0-1

[Event "*** Titled Tuesday Blitz"]
[Site "Chess.com"]
[Date "2020.05.26"]
[Round "3"]
[White "crescentmoon2411"]
[Black "Munkhzul_Turmunkh"]
[Result "0-1"]
[WhiteElo "2757"]
[BlackElo "2554"]
[TimeControl "180+1"]
[EndTime "10:28:10 PDT"]
[Termination "Munkhzul_Turmunkh won on time"]

1. e4 {[%clk 0:03:00.9]} 1... c5 {[%clk 0:02:57.8]} 2. Nf3 {[%clk 0:03:00.8]}
2... d6 {[%clk 0:02:57.5]} 3. Bb5+ {[%clk 0:02:57.9]} 3... Nd7 {[%clk
0:02:56.4]} 4. O-O {[%clk 0:02:55.9]} 4... Nf6 {[%clk 0:02:50.1]} 5. Re1 {[%clk
0:02:52.7]} 5... a6 {[%clk 0:02:45.6]} 6. Bf1 {[%clk 0:02:50.5]} 6... e5 {[%clk
0:02:42]} 7. c3 {[%clk 0:02:49.1]} 7... Be7 {[%clk 0:02:41.7]} 8. d4 {[%clk
0:02:48.9]} 8... O-O {[%clk 0:02:39.3]} 9. Nbd2 {[%clk 0:02:47.4]} 9... b5
{[%clk 0:02:34.6]} 10. a4 {[%clk 0:02:46.6]} 10... cxd4 {[%clk 0:02:24.8]} 11.
cxd4 {[%clk 0:02:45.3]} 11... b4 {[%clk 0:02:23.1]} 12. Nc4 {[%clk 0:02:36]}
12... Bb7 {[%clk 0:02:15.1]} 13. d5 {[%clk 0:02:29.4]} 13... a5 {[%clk
0:02:10.2]} 14. Qc2 {[%clk 0:02:01.8]} 14... Nc5 {[%clk 0:02:05.8]} 15. b3
{[%clk 0:01:52.2]} 15... Rc8 {[%clk 0:02:01.3]} 16. Bd3 {[%clk 0:01:33.8]} 16...
Ba6 {[%clk 0:01:50.3]} 17. Be3 {[%clk 0:01:25.1]} 17... Nfd7 {[%clk 0:01:25.2]}
18. Nfd2 {[%clk 0:01:24.2]} 18... Nxd3 {[%clk 0:01:12.7]} 19. Qxd3 {[%clk
0:01:25.1]} 19... Nc5 {[%clk 0:01:12.9]} 20. Qc2 {[%clk 0:01:22.6]} 20... h6
{[%clk 0:01:06.4]} 21. Rac1 {[%clk 0:01:17.4]} 21... Bg5 {[%clk 0:01:00.3]} 22.
Bxg5 {[%clk 0:01:08]} 22... Qxg5 {[%clk 0:00:55]} 23. Nxd6 {[%clk 0:00:59.1]}
23... Nxb3 {[%clk 0:00:46.7]} 24. Nxc8 {[%clk 0:00:51]} 24... Nxc1 {[%clk
0:00:46.2]} 25. Nf3 {[%clk 0:00:44.2]} 25... Qf6 {[%clk 0:00:34.4]} 26. Na7
{[%clk 0:00:22.3]} 26... Nd3 {[%clk 0:00:33.5]} 27. Rd1 {[%clk 0:00:18.7]} 27...
Nf4 {[%clk 0:00:30.7]} 28. Nc6 {[%clk 0:00:17.1]} 28... Be2 {[%clk 0:00:26.2]}
29. Nfxe5 {[%clk 0:00:15.6]} 29... Bxd1 {[%clk 0:00:21.8]} 30. Qxd1 {[%clk
0:00:16.5]} 30... Re8 {[%clk 0:00:20.7]} 31. d6 {[%clk 0:00:12]} 31... Rxe5
{[%clk 0:00:12.8]} 32. Nxe5 {[%clk 0:00:09.9]} 32... Qxe5 {[%clk 0:00:10.9]} 33.
d7 {[%clk 0:00:10.2]} 33... Ne6 {[%clk 0:00:09.6]} 34. d8=Q+ {[%clk 0:00:07.8]}
34... Nxd8 {[%clk 0:00:09.5]} 35. Qxd8+ {[%clk 0:00:08.5]} 35... Kh7 {[%clk
0:00:10.3]} 36. h3 {[%clk 0:00:06.7]} 36... b3 {[%clk 0:00:10.5]} 37. Qb6 {[%clk
0:00:04.8]} 37... b2 {[%clk 0:00:10.7]} 38. g3 {[%clk 0:00:03.9]} 38... Qc3
{[%clk 0:00:08.3]} 39. Kg2 {[%clk 0:00:01.7]} 39... Qc2 {[%clk 0:00:08.7]} 40.
Qb5 {[%clk 0:00:01]} 40... Qxe4+ {[%clk 0:00:08.6]} 0-1

[Event "*** Titled Tuesday Blitz"]
[Site "Chess.com"]
[Date "2020.05.26"]
[Round "3"]
[White "Tayson_7"]
[Black "Chepaschess"]
[Result "1-0"]
[WhiteElo "2624"]
[BlackElo "2801"]
[TimeControl "180+1"]
[EndTime "10:28:11 PDT"]
[Termination "Tayson_7 won on time"]

1. e4 {[%clk 0:02:59.3]} 1... c6 {[%clk 0:02:59]} 2. d4 {[%clk 0:02:55.1]} 2...
d5 {[%clk 0:02:59.2]} 3. f3 {[%clk 0:02:55.8]} 3... e6 {[%clk 0:02:57]} 4. Nc3
{[%clk 0:02:55.7]} 4... Bb4 {[%clk 0:02:56.8]} 5. Bd2 {[%clk 0:02:55.5]} 5...
Ne7 {[%clk 0:02:54.3]} 6. Nce2 {[%clk 0:02:54.4]} 6... Bxd2+ {[%clk 0:02:43.1]}
7. Qxd2 {[%clk 0:02:55.3]} 7... Nd7 {[%clk 0:02:38.6]} 8. Nf4 {[%clk 0:02:43.1]}
8... dxe4 {[%clk 0:02:24.3]} 9. fxe4 {[%clk 0:02:43.1]} 9... e5 {[%clk
0:02:24.9]} 10. dxe5 {[%clk 0:02:43.3]} 10... Nxe5 {[%clk 0:02:23.4]} 11. Qxd8+
{[%clk 0:02:42.8]} 11... Kxd8 {[%clk 0:02:24.3]} 12. Nf3 {[%clk 0:02:43.2]}
12... N7g6 {[%clk 0:02:19.6]} 13. O-O-O+ {[%clk 0:02:31.3]} 13... Ke7 {[%clk
0:02:18.2]} 14. Nxg6+ {[%clk 0:02:21.2]} 14... Nxg6 {[%clk 0:02:17.8]} 15. Bc4
{[%clk 0:02:21.6]} 15... Bg4 {[%clk 0:02:12.7]} 16. Rdf1 {[%clk 0:01:53.4]}
16... Bxf3 {[%clk 0:02:07.4]} 17. gxf3 {[%clk 0:01:51]} 17... Nf4 {[%clk
0:02:06.6]} 18. Rhg1 {[%clk 0:01:50.6]} 18... Rhg8 {[%clk 0:01:47.8]} 19. Kd2
{[%clk 0:01:44.6]} 19... g5 {[%clk 0:01:41.7]} 20. Ke3 {[%clk 0:01:43.4]} 20...
h6 {[%clk 0:01:36.2]} 21. h4 {[%clk 0:01:43.4]} 21... Kf6 {[%clk 0:01:35.4]} 22.
hxg5+ {[%clk 0:01:27.9]} 22... hxg5 {[%clk 0:01:36.3]} 23. Rd1 {[%clk
0:01:27.6]} 23... Ke7 {[%clk 0:01:17.4]} 24. a4 {[%clk 0:01:22.8]} 24... a5
{[%clk 0:01:14.8]} 25. Rd2 {[%clk 0:01:22.3]} 25... Rab8 {[%clk 0:00:13.6]} 26.
Rgd1 {[%clk 0:01:03.5]} 26... Rgd8 {[%clk 0:00:11.7]} 27. Rxd8 {[%clk
0:00:59.6]} 27... Rxd8 {[%clk 0:00:12.6]} 28. Rxd8 {[%clk 0:00:59.9]} 28... Kxd8
{[%clk 0:00:13.5]} 29. Bxf7 {[%clk 0:01:00.5]} 29... Ke7 {[%clk 0:00:14.3]} 30.
Bc4 {[%clk 0:01:00.9]} 30... Kd6 {[%clk 0:00:14.7]} 31. Kd4 {[%clk 0:01:00.9]}
31... c5+ {[%clk 0:00:15]} 32. Kc3 {[%clk 0:00:59.7]} 32... Ke5 {[%clk
0:00:15.8]} 33. Bf1 {[%clk 0:00:58.5]} 33... Ne6 {[%clk 0:00:13.3]} 34. Kc4
{[%clk 0:00:44]} 34... Nd4 {[%clk 0:00:12.8]} 35. Kxc5 {[%clk 0:00:41]} 35...
Nxf3 {[%clk 0:00:12]} 36. Kb6 {[%clk 0:00:41.4]} 36... Nd2 {[%clk 0:00:09.7]}
37. Be2 {[%clk 0:00:36.8]} 37... g4 {[%clk 0:00:08]} 38. Bxg4 {[%clk 0:00:33.3]}
38... Nc4+ {[%clk 0:00:08.3]} 39. Kb5 {[%clk 0:00:30.5]} 39... Nxb2 {[%clk
0:00:08.3]} 40. Bf5 {[%clk 0:00:28.4]} 40... Kd4 {[%clk 0:00:05.5]} 41. Kxa5
{[%clk 0:00:28.3]} 41... Kc5 {[%clk 0:00:02.9]} 42. Be6 {[%clk 0:00:28.4]} 42...
Nd1 {[%clk 0:00:02.8]} 43. Bd5 {[%clk 0:00:28.6]} 43... Ne3 {[%clk 0:00:02.1]}
44. Bxb7 {[%clk 0:00:28.5]} 44... Nxc2 {[%clk 0:00:02.1]} 45. Ka6 {[%clk
0:00:25.9]} 45... Kb4 {[%clk 0:00:01.5]} 46. a5 {[%clk 0:00:25]} 1-0